Cogmind - Beta 11.1 @@@ ROGUE MODE // 2022.04.30 @ 15:03:00 Player: ktur Result: Destroyed by G-67 Veteran with Plasma Rifle Performance ------------- Evolutions (7) 3500 Regions Visited (10) 2000 Robots Destroyed (1) 5 Value Destroyed (5) 5 Prototype IDs (0) 0 Alien Tech Used (0) 0 Bonus (2987) 2987 TOTAL SCORE: 8497 Bonus ------- Pacifist 1987 Entered DSFs 500 Scanned by Researcher 500 Cogmind --------- Core Integrity 0/1300 Matter 300/300 Energy 100/100 System Corruption 2% Temperature Cool (0) Movement Core (50) Location -3/Testing Parts ------- > --- POWER (2) -------- (None) > --- PROPULSION (8) --- (None) > --- UTILITY (9) ------ (None) > --- WEAPON (2) ------- (None) > --- INVENTORY (5) ---- (None) Peak State ------------ > --- POWER ------------ (None) > --- PROPULSION ------- Advanced Heavy Treads > --- UTILITY ---------- (None) > --- WEAPON ----------- (None) > --- INVENTORY -------- (None) [Rating: 16] Favorites ----------- Power None Propulsion Advanced Heavy Treads Treads Advanced Heavy Treads Utility None Weapon None Build | -11 -10 -9 -8 -7 -6 -6 -5 -4 -3 -3 ------- Run | Scr Mat Mat Mat Fac Fac DSF Fac Fac Res Tes Slots Evolved 14 | . . 2 2 2 2 . 2 2 2 . Power 1 | . . . . . . . 1 . . . Propulsion 6 | . . 2 . 1 1 . . 1 1 . Utility 7 | . . . 2 1 1 . 1 1 1 . Weapon . | . . . . . . . . . . . Parts Attached 1 | . . . . . . . . . . 1 Power . | . . . . . . . . . . . Engine . | . . . . . . . . . . . Core . | . . . . . . . . . . . Reactor . | . . . . . . . . . . . Propulsion 1 | . . . . . . . . . . 1 Treads 1 | . . . . . . . . . . 1 Leg . | . . . . . . . . . . . Wheel . | . . . . . . . . . . . Hover . | . . . . . . . . . . . Flight . | . . . . . . . . . . . Utility . | . . . . . . . . . . . Device . | . . . . . . . . . . . Storage . | . . . . . . . . . . . Processor . | . . . . . . . . . . . Hackware . | . . . . . . . . . . . Protection . | . . . . . . . . . . . Artifact . | . . . . . . . . . . . Weapon . | . . . . . . . . . . . Energy Gun . | . . . . . . . . . . . Energy Cannon . | . . . . . . . . . . . Ballistic Gun . | . . . . . . . . . . . Ballistic Cannon . | . . . . . . . . . . . Launcher . | . . . . . . . . . . . Special Weapon . | . . . . . . . . . . . Impact Weapon . | . . . . . . . . . . . Slashing Weapon . | . . . . . . . . . . . Piercing Weapon . | . . . . . . . . . . . Special Melee Weapon . | . . . . . . . . . . . Unidentified Prototypes . | . . . . . . . . . . . Parts Lost 1 | . . . . . . . . . . 1 Power . | . . . . . . . . . . . Propulsion 1 | . . . . . . . . . . 1 Utility . | . . . . . . . . . . . Weapon . | . . . . . . . . . . . Highest Loss Streak 1 | . . . . . . . . . . 1 To Critical Strikes . | . . . . . . . . . . . Average Slot Usage (%) . | . . . . . . . . . . 2 Naked Turns 553 | . 40 40 51 23 18 41 171 25 105 39 Heaviest Build . | . . . . . . . . . . . Greatest Support 3 | 3 3 3 3 3 3 3 3 3 3 3 Greatest Overweight (x) . | . . . . . . . . . . . Average Overweight (x) . | . . . . . . . . . . . Largest Inventory Capacity 5 | 5 5 5 5 5 5 5 5 5 5 5 Average Capacity 5 | 5 5 5 5 5 5 5 5 5 5 5 Most Carried . | . . . . . . . . . . . Average Carried . | . . . . . . . . . . . Final Capacity 5 | 5 5 5 5 5 5 5 5 5 5 5 Final Carried . | . . . . . . . . . . . Class Distribution -------------------- 100% | Mutant Dominant Class ---------------- Mutant | -10/Materials Mutant | -9/Materials Mutant | -8/Materials Mutant | -7/Factory Mutant | -6/Factory Mutant | -6/DSF Mutant | -5/Factory Mutant | -4/Factory Mutant | -3/Research Mutant | -3/Testing Resources | -11 -10 -9 -8 -7 -6 -6 -5 -4 -3 -3 ----------- Run | Scr Mat Mat Mat Fac Fac DSF Fac Fac Res Tes Matter Collected 206 | 87 . . 7 . . 12 85 . . 15 Remotely . | . . . . . . . . . . . Salvage Created 26 | . . . . . . . 26 . . . Parts 5 | . . . . . . . 5 . . . Haulers Intercepted . | . . . . . . . . . . . Recyclers Shooed . | . . . . . . . . . . . Parts Field Recycled . | . . . . . . . . . . . Retrieved Matter . | . . . . . . . . . . . Parts Self-Destructed . | . . . . . . . . . . . Prevented . | . . . . . . . . . . . Kills | -11 -10 -9 -8 -7 -6 -6 -5 -4 -3 -3 ------- Run | Scr Mat Mat Mat Fac Fac DSF Fac Fac Res Tes Combat Hostiles Destroyed . | . . . . . . . . . . . Classes Destroyed 1 | . . . . . . . 1 . . . Builder 1 | . . . . . . . 1 . . . Best Kill Streak 1 | . . . . . . . 1 . . . Combat Bots Only . | . . . . . . . . . . . Max Kills in Single Turn 1 | . . . . . . . 1 . . . Gunslinging . | . . . . . . . . . . . Exploded . | . . . . . . . . . . . Melee . | . . . . . . . . . . . Uniques/NPCs Destroyed . | . . . . . . . . . . . Combat | -11 -10 -9 -8 -7 -6 -6 -5 -4 -3 -3 -------- Run | Scr Mat Mat Mat Fac Fac DSF Fac Fac Res Tes Damage Taken 3676 | . 25 131 359 29 64 570 481 93 407 1517 Core 3059 | . 25 131 359 29 64 570 481 93 407 900 Absorbed by Shields . | . . . . . . . . . . . Core Remaining (%) 69 | 100 90 67 34 95 . 25 51 91 . . Volleys Fired . | . . . . . . . . . . . Largest . | . . . . . . . . . . . Hottest . | . . . . . . . . . . . Shots Fired . | . . . . . . . . . . . Gun . | . . . . . . . . . . . Cannon . | . . . . . . . . . . . Launcher . | . . . . . . . . . . . Special . | . . . . . . . . . . . Kinetic . | . . . . . . . . . . . Thermal . | . . . . . . . . . . . Explosive . | . . . . . . . . . . . Electromagnetic . | . . . . . . . . . . . Robot Hit Streak . | . . . . . . . . . . . Robot Miss Streak . | . . . . . . . . . . . Penetration Max . | . . . . . . . . . . . Secondary Targets . | . . . . . . . . . . . Shots Hit Robots . | . . . . . . . . . . . Core Hits 2 | . . . . . . . 1 . . 1 Critical Kills . | . . . . . . . . . . . Critical Parts Destroyed . | . . . . . . . . . . . Critical Strikes . | . . . . . . . . . . . Melee Attacks . | . . . . . . . . . . . Impact . | . . . . . . . . . . . Slashing . | . . . . . . . . . . . Piercing . | . . . . . . . . . . . Sneak Attacks . | . . . . . . . . . . . Combat Hostiles . | . . . . . . . . . . . Follow-up Attacks . | . . . . . . . . . . . Damage Inflicted 101 | . . . 1 . . 5 51 . . 44 Guns . | . . . . . . . . . . . Cannons . | . . . . . . . . . . . Explosions . | . . . . . . . . . . . Melee . | . . . . . . . . . . . Ramming 101 | . . . 1 . . 5 51 . . 44 Kinetic . | . . . . . . . . . . . Thermal . | . . . . . . . . . . . Explosive . | . . . . . . . . . . . Electromagnetic . | . . . . . . . . . . . Impact . | . . . . . . . . . . . Slashing . | . . . . . . . . . . . Piercing . | . . . . . . . . . . . Highest Corruption 2 | . . . . . . . 1 . 1 2 Average Corruption 1 | . . . . . . . 1 . 1 1 Corruption Purged . | . . . . . . . . . . . Corruption Blocked . | . . . . . . . . . . . Effects 1 | . . . . . . . . . 1 . Matter Fused 1 | . . . . . . . . . 1 . Overload Shots . | . . . . . . . . . . . Overflow Damage . | . . . . . . . . . . . Projectiles . | . . . . . . . . . . . Explosions . | . . . . . . . . . . . Melee . | . . . . . . . . . . . Knockbacks . | . . . . . . . . . . . Impact . | . . . . . . . . . . . Kinetic . | . . . . . . . . . . . Secondary . | . . . . . . . . . . . Self-Inflicted Damage 46 | . . . . . . 2 25 . . 19 Shots . | . . . . . . . . . . . Rammed 21 | . . . 1 . . 1 7 . . 12 Targets Rammed 21 | . . . 1 . . 1 7 . . 12 Kicked . | . . . . . . . . . . . Crushed . | . . . . . . . . . . . Highest Temperature . | . . . . . . . . . . . Average Temperature . | . . . . . . . . . . . Received Heat Transfer 738 | . 15 57 45 18 . 42 195 18 72 276 Siege Activations . | . . . . . . . . . . . Robots Corrupted . | . . . . . . . . . . . Combat Hostiles . | . . . . . . . . . . . Parts Fried . | . . . . . . . . . . . Impact Corruptions . | . . . . . . . . . . . Robots Melted . | . . . . . . . . . . . Combat Hostiles . | . . . . . . . . . . . Parts Melted . | . . . . . . . . . . . Heat Transferred . | . . . . . . . . . . . Parts Sabotaged . | . . . . . . . . . . . Parts Stolen . | . . . . . . . . . . . Parts Stripped . | . . . . . . . . . . . Power Chain Reactions . | . . . . . . . . . . . Missiles Intercepted . | . . . . . . . . . . . Alert | -11 -10 -9 -8 -7 -6 -6 -5 -4 -3 -3 ------- Run | Scr Mat Mat Mat Fac Fac DSF Fac Fac Res Tes Peak Influence 255 | . 14 35 29 12 5 3 150 118 161 255 Initial 90 | . . 5 14 12 5 3 1 73 61 90 Average 60 | . 10 15 16 12 5 3 40 83 112 150 Maximum Alert Level 1 | . . . . . . . . . . 1 Low Security (%) 95 | 100 100 100 100 100 100 100 100 100 100 70 Level 1 4 | . . . . . . . . . . 29 Level 2 . | . . . . . . . . . . . Level 3 . | . . . . . . . . . . . Level 4 . | . . . . . . . . . . . Level 5 . | . . . . . . . . . . . High Security . | . . . . . . . . . . . Max Security . | . . . . . . . . . . . Squads Dispatched 5 | . . 1 . . . . 1 . 1 2 Investigation 2 | . . 1 . . . . . . 1 . Extermination . | . . . . . . . . . . . Reinforcement 3 | . . . . . . . 1 . . 2 Assault . | . . . . . . . . . . . Garrison . | . . . . . . . . . . . Intercept . | . . . . . . . . . . . Searches Triggered . | . . . . . . . . . . . Construction Impeded . | . . . . . . . . . . . Haulers Reinforced . | . . . . . . . . . . . Active Scanning Responses . | . . . . . . . . . . . Cargo Convoy Interrupts . | . . . . . . . . . . . Stealth | -11 -10 -9 -8 -7 -6 -6 -5 -4 -3 -3 --------- Run | Scr Mat Mat Mat Fac Fac DSF Fac Fac Res Tes Distress Signals 4 | . . . 2 . . . . . . 2 Communications Jammed . | . . . . . . . . . . . Distress Signals . | . . . . . . . . . . . Times Spotted 59 | . 2 6 6 3 1 2 12 2 5 20 Peak Tracking Total 13 | . 2 6 6 3 1 2 6 4 5 13 Tactical Retreats 8 | . . . 1 . . . 2 . 1 4 Traps | -11 -10 -9 -8 -7 -6 -6 -5 -4 -3 -3 ------- Run | Scr Mat Mat Mat Fac Fac DSF Fac Fac Res Tes Traps Triggered 2 | . . . . . . 1 . . 1 . Indirectly . | . . . . . . . . . . . Trap Hack Attempts . | . . . . . . . . . . . Triggered . | . . . . . . . . . . . Disarmed . | . . . . . . . . . . . Reprogrammed . | . . . . . . . . . . . Reused . | . . . . . . . . . . . Traps Extracted . | . . . . . . . . . . . Installed . | . . . . . . . . . . . Triggered . | . . . . . . . . . . . Machines | -11 -10 -9 -8 -7 -6 -6 -5 -4 -3 -3 ---------- Run | Scr Mat Mat Mat Fac Fac DSF Fac Fac Res Tes Machines Disabled . | . . . . . . . . . . . Max in Single Turn . | . . . . . . . . . . . Machines Sabotaged . | . . . . . . . . . . . Garrisons Compromised . | . . . . . . . . . . . Overloaded Fab Kills . | . . . . . . . . . . . Hacking | -11 -10 -9 -8 -7 -6 -6 -5 -4 -3 -3 --------- Run | Scr Mat Mat Mat Fac Fac DSF Fac Fac Res Tes Machines Accessed 12 | . 1 1 . . 1 . 3 . 4 2 Terminals 10 | . 1 1 . . 1 . 2 . 3 2 Fabricators 1 | . . . . . . . . . 1 . Repair Stations . | . . . . . . . . . . . Recycling Units 1 | . . . . . . . 1 . . . Scanalyzers . | . . . . . . . . . . . Garrison Access . | . . . . . . . . . . . Total Hacks 23 | . 4 2 . . 1 . 6 . 6 4 Successful 8 | . 3 . . . 1 . 2 . 2 . Failed 15 | . 1 2 . . . . 4 . 4 4 Catastrophic 4 | . . 2 . . . . 1 . 1 . Database Lockouts . | . . . . . . . . . . . Manual 15 | . 3 2 . . . . 3 . 3 4 Terminals 18 | . 4 2 . . 1 . 3 . 4 4 Fabricators 2 | . . . . . . . . . 2 . Repair Stations . | . . . . . . . . . . . Recycling Units 3 | . . . . . . . 3 . . . Scanalyzers . | . . . . . . . . . . . Garrison Access . | . . . . . . . . . . . Terminal Hacks 7 | . 3 . . . 1 . 1 . 2 . Open DSF 1 | . . . . . 1 . . . . . Level Access Points 2 | . 1 . . . . . 1 . . . Branch Access Points 1 | . . . . . . . . . 1 . Emergency Access Points 2 | . 1 . . . . . . . 1 . Locate Traps 1 | . 1 . . . . . . . . . Fabricator Hacks . | . . . . . . . . . . . Repair Station Hacks . | . . . . . . . . . . . Recycling Unit Hacks 1 | . . . . . . . 1 . . . Retrieve Components 1 | . . . . . . . 1 . . . Scanalyzer . | . . . . . . . . . . . Garrison Access Hacks . | . . . . . . . . . . . Unauthorized Hacks . | . . . . . . . . . . . Terminals . | . . . . . . . . . . . Fabricators . | . . . . . . . . . . . Repair Stations . | . . . . . . . . . . . Recycling Units . | . . . . . . . . . . . Scanalyzers . | . . . . . . . . . . . Garrison Access . | . . . . . . . . . . . Data Cores Recovered . | . . . . . . . . . . . Used . | . . . . . . . . . . . Hacking Detections 10 | . 1 1 . . 1 . 2 . 3 2 Full Trace Events 2 | . . 1 . . . . . . 1 . Feedback Events . | . . . . . . . . . . . Feedback Blocked . | . . . . . . . . . . . Robot Schematics Acquired . | . . . . . . . . . . . Robots Built . | . . . . . . . . . . . Authchips . | . . . . . . . . . . . Time . | . . . . . . . . . . . Total Robot Build Rating . | . . . . . . . . . . . Part Schematics Acquired . | . . . . . . . . . . . Parts Built . | . . . . . . . . . . . Authchips . | . . . . . . . . . . . Time . | . . . . . . . . . . . Total Part Build Rating . | . . . . . . . . . . . Parts Repaired . | . . . . . . . . . . . Time . | . . . . . . . . . . . Parts Recycled . | . . . . . . . . . . . Recycled Matter . | . . . . . . . . . . . Retrieved Matter . | . . . . . . . . . . . Retrieved Components . | . . . . . . . . . . . Parts Scanalyzed . | . . . . . . . . . . . Part Schematics Acquired . | . . . . . . . . . . . Parts Damaged . | . . . . . . . . . . . Bothacking | -11 -10 -9 -8 -7 -6 -6 -5 -4 -3 -3 ------------ Run | Scr Mat Mat Mat Fac Fac DSF Fac Fac Res Tes Used RIF Installer . | . . . . . . . . . . . Robots Hacked . | . . . . . . . . . . . Non-combat . | . . . . . . . . . . . Combat . | . . . . . . . . . . . Robot Hacks Applied . | . . . . . . . . . . . Relay Couplers Released . | . . . . . . . . . . . Fabnet Peak Effective % . | . . . . . . . . . . . Robots Rewired . | . . . . . . . . . . . Allies Hacked . | . . . . . . . . . . . Hacks Repelled . | . . . . . . . . . . . Allies | -11 -10 -9 -8 -7 -6 -6 -5 -4 -3 -3 -------- Run | Scr Mat Mat Mat Fac Fac DSF Fac Fac Res Tes Total Allies . | . . . . . . . . . . . Largest Group . | . . . . . . . . . . . Highest-Rated Group . | . . . . . . . . . . . Highest-Rated Ally . | . . . . . . . . . . . Total Orders . | . . . . . . . . . . . Ally Attacks . | . . . . . . . . . . . Total Damage . | . . . . . . . . . . . Kills . | . . . . . . . . . . . Allies Corrupted . | . . . . . . . . . . . Allies Melted . | . . . . . . . . . . . Intel | -11 -10 -9 -8 -7 -6 -6 -5 -4 -3 -3 ------- Run | Scr Mat Mat Mat Fac Fac DSF Fac Fac Res Tes Robot Analysis Total . | . . . . . . . . . . . Derelict Logs Recovered . | . . . . . . . . . . . Drone Launches . | . . . . . . . . . . . Drone Recoveries . | . . . . . . . . . . . Exploration | -11 -10 -9 -8 -7 -6 -6 -5 -4 -3 -3 ------------- Run | Scr Mat Mat Mat Fac Fac DSF Fac Fac Res Tes Turns Passed 616 | 9 40 40 51 23 18 41 171 25 105 93 Spaces Moved 1124 | 18 80 79 99 46 36 82 328 49 210 97 Core 1124 | 18 80 79 99 46 36 82 328 49 210 97 Treads . | . . . . . . . . . . . Legs . | . . . . . . . . . . . Wheels . | . . . . . . . . . . . Hover . | . . . . . . . . . . . Flight . | . . . . . . . . . . . Fastest Speed 50 | 50 50 50 50 50 50 50 50 50 50 50 Average Speed 50 | 50 50 50 50 50 50 50 50 50 50 50 Slowest Speed 50 | 50 50 50 50 50 50 50 50 50 50 50 Overloaded Moves . | . . . . . . . . . . . Propulsion Burnouts . | . . . . . . . . . . . Robots Hopped . | . . . . . . . . . . . Cave-ins Triggered . | . . . . . . . . . . . Exploration Rate (%) 18 | 3 30 18 17 2 2 78 15 2 8 23 Regions Visited 10 Branch Regions 1 Pre-discovered Areas . | . . . . . . . . . . . Known Exits Taken 4 | . 1 . . . 1 . 1 . 1 . Unknown Exits Taken 5 | 1 . 1 1 1 . . . 1 . . Scrap Searched . | . . . . . . . . . . . Spaces Dug . | . . . . . . . . . . . Terrain Destroyed . | . . . . . . . . . . . Melee . | . . . . . . . . . . . Projectile . | . . . . . . . . . . . AOE . | . . . . . . . . . . . Terrain Rammed . | . . . . . . . . . . . Walls Destroyed . | . . . . . . . . . . . Machines Disabled . | . . . . . . . . . . . Actions | -11 -10 -9 -8 -7 -6 -6 -5 -4 -3 -3 --------- Run | Scr Mat Mat Mat Fac Fac DSF Fac Fac Res Tes Total 1167 | 17 79 78 99 45 35 82 334 48 209 141 Wait 1 | . . . . . . . . . . 1 Move 1115 | 17 79 78 98 45 35 82 327 48 209 97 Hop . | . . . . . . . . . . . Pick Up . | . . . . . . . . . . . Fast Attach 1 | . . . . . . . . . . 1 Attach . | . . . . . . . . . . . Detach . | . . . . . . . . . . . Swap . | . . . . . . . . . . . Drop . | . . . . . . . . . . . Fire . | . . . . . . . . . . . Melee . | . . . . . . . . . . . Ram 20 | . . . 1 . . . 7 . . 12 Kick . | . . . . . . . . . . . Crush . | . . . . . . . . . . . Escape Stasis 30 | . . . . . . . . . . 30 Rewire . | . . . . . . . . . . . Trap . | . . . . . . . . . . . Miscellaneous . | . . . . . . . . . . . Route ------- -11/Scrapyard -10/Materials (discovered 3 exits: *Mat x3) -9/Materials -8/Materials -7/Factory -6/Factory (discovered 2 exits: *Fac / DSF) -6/DSF -5/Factory (discovered 5 exits: *Fac x4 / [*Ext]) -4/Factory -3/Research (discovered 2 exits: *Tes x2) -3/Testing History --------- Turn | Location | Event 3 | -11/Scrapyard | Discovered new exit (range 15) 10 | -11/Scrapyard | Entered Materials 19 | -10/Materials | Identified exit to Materials 50 | -10/Materials | Entered another Materials area 50 | -9/Materials | Evolved 2 slots: Propulsion x2 87 | -9/Materials | Discovered new exit (range 7) 90 | -9/Materials | Entered another Materials area 90 | -8/Materials | Evolved 2 slots: Utility x2 137 | -8/Materials | Discovered new exit (range 7) 138 | -8/Materials | Core integrity fell below 50% 141 | -8/Materials | Entered Factory 141 | -7/Factory | Evolved 2 slots: Propulsion x1, Utility x1 161 | -7/Factory | Discovered new exit (range 7) 164 | -7/Factory | Entered another Factory area 164 | -6/Factory | Evolved 2 slots: Propulsion x1, Utility x1 181 | -6/Factory | Discovered new exit (range 15) 182 | -6/Factory | Identified exit to DSF 182 | -6/Factory | Entered DSF 206 | -6/DSF | Additional patrols routed to DSF 207 | -6/DSF | Core integrity fell below 50% 216 | -6/DSF | Discovered new exit (range 15) 223 | -6/DSF | Entered Factory 223 | -5/Factory | Evolved 2 slots: Power x1, Utility x1 258 | -5/Factory | Discovered new exit (range 13) 305 | -5/Factory | Build established: Mutant 337 | -5/Factory | Spotted B-75 Beast 346 | -5/Factory | Identified exit to Factory 394 | -5/Factory | Entered another Factory area 394 | -4/Factory | Evolved 2 slots: Propulsion x1, Utility x1 415 | -4/Factory | Discovered new exit (range 8) 419 | -4/Factory | Entered Research 419 | -3/Research | Evolved 2 slots: Propulsion x1, Utility x1 461 | -3/Research | Identified exit to Testing 524 | -3/Research | Entered Testing 563 | -3/Testing | Core integrity fell below 50% 566 | -3/Testing | Scanned by Researcher 611 | -3/Testing | Core integrity fell below 20% 617 | -3/Testing | Destroyed by G-67 Veteran with Plasma Rifle Last Messages --------------- 00606_ C-55 Analyst is analyzing... 00606_ R-10 Processor destroyed. 00606_ Critical hit (Burn: +50). 00608_ K-01 Serf collects debris. 00608_ Held in stasis. 00609_ K-01 Serf collects debris. 00609_ Critical hit (Burn: +50). 00610_ Held in stasis. 00610_ C-55 Analyst is analyzing... 00610_ K-01 Serf destroyed. 00611_ R-10 Processor collects Com. Wheel. 00612_ W-44 Eye sends out distress signal. 00612_ Held in stasis. 00612_ C-55 Analyst is analyzing... 00612_ Broken Adv. Heavy Treads destroyed. 00614_ Held in stasis. 00614_ C-55 Analyst is analyzing... 00615_ R-10 Processor collects Com. Wheel. 00616_ Held in stasis. 00616_ C-55 Analyst is analyzing... Map ----- +----------------------------------------------------+ | ????????????????# #??????????????????????????????? | | ????????????????# #??????????????????????????????? | | ????????????????# #??????????????????????????????? | | ????????????????#%#??????????????????????????????? | | ????????????????# #??????????????????????????????? | | ????????????????# #??????????????????????????????? | | ????????????????# #??????????????????????????????? | | ????????????????# #??????????????????????????????? | | ????????????????# #??????????????????????????????? | | ????????????????#%#??????????????????????????????? | | ????????????????#%#??????????????????????????????? | | ????????????????#%#??????????????????????????????? | | ????????????????#%#??????????????????????????????? | | ???????????????##/#######????????????????????????? | | ???????????????# % #????????????????????????? | | ???????????????# """ #????????????????????????? | | ???????????????# ""T"" #????????????????????????? | | ???????????????# "" "" #????????????????????????? | | ???????????????# #????????????????????????? | | ???????????????# """""" #????????????????????????? | | ???????????????# """""" #????????????????????????? | | ???????????????# """""" #????????????????????????? | | ???????????????# #????????????????????????? | | ??????????+#########/################k "?????????? | | ?????? c w cksRgg*% g g ????????? | | ?????? ks@g!= A ????????? | | ?????????########+################???????????????? | | ?????????????????????????????????????????????????? | | ?????????????????????????????????????????????????? | | ?????????????????????????????????????????????????? | | ?????????????????????????????????????????????????? | | ?????????????????????????????????????????????????? | | ?????????????????????????????????????????????????? | | ?????????????????????????????????????????????????? | | ?????????????????????????????????????????????????? | | ?????????????????????????????????????????????????? | | ?????????????????????????????????????????????????? | | ?????????????????????????????????????????????????? | | ?????????????????????????????????????????????????? | | ?????????????????????????????????????????????????? | | ?????????????????????????????????????????????????? | | ?????????????????????????????????????????????????? | | ?????????????????????????????????????????????????? | | ?????????????????????????????????????????????????? | | ?????????????????????????????????????????????????? | | ?????????????????????????????????????????????????? | | ?????????????????????????????????????????????????? | | ?????????????????????????????????????????????????? | | ?????????????????????????????????????????????????? | | | +----------------------------------------------------+ Best States ------------- Heat Dissipation 46 Energy Generation 5 Energy Capacity 100 Matter Stores 300 Matter Capacity 300 Sight Range 16 Terrain Scan Density 10 Evasion (%) 50 Item Schematics ----------------- None Robot Schematics ------------------ None Fabricated ------------ Nothing Alien Tech Used ----------------- None Achievements -------------- Desperate Times Challenges ------------ None Game ------ Seed RefineryMicrowarpAutogun Manual? 0 Play Time 00:14:24 Cumulative 373.2 hours Start 2022.04.30 @ 14:06:50 End 2022.04.30 @ 15:03:00 Sessions 2 Manual Loads 0 Difficulty Rogue Special Mode None Game No. 384 Rogue 384 Adventurer 0 Explorer 0 Win Type - Total 20 Types 12/2/3/2/0/0/0/1/0 Lore% 91 Gallery% 88 Achievement% 75 Wizard Run 0 Options --------- ASCII 0 Keyboard 0 Movement Arrows Keybinds 0 Fullscreen 1 Font 18/Smallcaps Map View 76x50 Tactical HUD 1 Map Filters NONE Filters NONE Steam 1 RUN: 5df71b58-1c37-4c41-90b5-d541f8c3d15a